lending/lending_fUSD_20250706
["ID","MTS","AMOUNT","RATE_DAILY","PERIOD"]
[369971018,1751805050357,-2498.95,0.00019178,2]
[369971020,1751805050367,-460.0,0.00019178,2]
[369971022,1751805050376,-460.0,0.00019178,2]
[369971024,1751805050386,-460.0,0.00019178,2]
[369971026,1751805050396,-460.0,0.00019178,2]
[369971028,1751805050405,-721.41,0.00019178,2]
[369971030,1751805050415,-460.0,0.00019178,2]
[369971032,1751805050425,-460.0,0.00019178,2]
[369971034,1751805050434,-471.64,0.00019178,2]
[369971036,1751805050445,-3011.76,0.00019178,2]
[369971038,1751805050455,-463.59649351,0.00019178,2]
[369971040,1751805050464,-1797.09,0.00019178,2]
[369971042,1751805050474,-460.0,0.00019178,2]
[369971044,1751805050484,-460.0,0.00019178,2]
[369971046,1751805050494,-460.0,0.00019178,2]
[369971048,1751805050504,-2165.16,0.00019178,2]
[369971050,1751805050513,-1404.99,0.00019178,2]
[369971052,1751805050523,-463.85,0.00019178,2]
[369971054,1751805050533,-964.39,0.00019178,2]
[369971056,1751805050543,-859.0,0.00019178,2]
[369971058,1751805050553,-460.0,0.00019178,2]
[369971060,1751805050563,-460.0,0.00019178,2]
[369971062,1751805050573,-460.0,0.00019178,2]
[369971064,1751805050582,-460.0,0.00019178,2]
[369971066,1751805050592,-460.0,0.00019178,2]
[369971068,1751805050602,-694.73,0.00019178,2]
[369971070,1751805050612,-833.06,0.00019178,2]
[369971072,1751805050622,-460.0,0.00019178,2]
[369971074,1751805050632,-1849.1,0.00019178,2]
[369971076,1751805050642,-1154.5,0.00019178,2]
[369971078,1751805050651,-460.0,0.00019178,2]
[369971080,1751805050661,-460.0,0.00019178,2]
[369971082,1751805050670,-460.0,0.00019178,2]
[369971084,1751805050680,-542.62,0.00019178,2]
[369971086,1751805050689,-882.21,0.00019178,2]
[369971088,1751805050699,-798.71,0.00019178,2]
[369971090,1751805050708,-460.0,0.00019178,2]
[369971092,1751805050717,-738.23,0.00019178,2]
[369971094,1751805050727,-522.4,0.00019178,2]
[369971096,1751805050736,-522.11,0.00019178,2]
[369971098,1751805050746,-290.802403,0.00019178,2]
[369971100,1751805050757,-185.961391,0.00019178,2]
[369971102,1751805050766,-1000.0,0.00019178,2]
[369971104,1751805050776,-460.0,0.00019178,2]
[369971106,1751805050785,-163.072735,0.00019178,2]
[369971108,1751805050795,-460.0,0.00019178,2]
[369971110,1751805050804,-863.22,0.00019178,2]
[369971112,1751805050814,-665.07,0.00019178,2]
[369971114,1751805050823,-460.0,0.00019178,2]
[369971116,1751805050833,-1168.08967,0.00019178,2]
[369971118,1751805050842,-650.88,0.00019178,2]
[369971120,1751805050852,-687.55,0.00019178,2]
[369971122,1751805050862,-460.0,0.00019178,2]
[369971124,1751805050872,-989.94,0.00019178,2]
[369971126,1751805050882,-460.0,0.00019178,2]
[369971128,1751805050891,-460.0,0.00019178,2]
[369971130,1751805050901,-972.24,0.00019178,2]
[369971132,1751805050910,-972.24,0.00019178,2]
[369971134,1751805050920,-661.61,0.00019178,2]
[369971136,1751805050929,-1018.44,0.00019178,2]
[369971138,1751805050939,-160.728233,0.00019178,2]
[369971140,1751805050949,-460.0,0.00019178,2]
[369971142,1751805050959,-943.98,0.00019178,2]
[369971144,1751805050970,-2052.98,0.00019178,2]
[369971146,1751805050980,-196.83627653,0.00019178,2]
[369971148,1751805050990,-821.9,0.00019178,2]
[369971150,1751805051000,-460.0,0.00019178,2]
[369971152,1751805051010,-766.79,0.00019178,2]
[369971154,1751805051020,-460.0,0.00019178,2]
[369971156,1751805051030,-460.0,0.00019178,2]
[369971158,1751805051040,-574.99,0.00019178,2]
[369971160,1751805051050,-460.0,0.00019178,2]
[369971162,1751805051061,-460.0,0.00019178,2]
[369971165,1751805051071,-976.63,0.00019178,2]
[369971192,1751805051339,-460.0,0.00019178,2]
[369971196,1751805051364,-460.0,0.00019178,2]
[369971197,1751805051374,-1615.7,0.00019178,2]
[369971199,1751805051384,-460.0,0.00019178,2]
[369971201,1751805051394,-1193.7,0.00019178,2]
[369971203,1751805051403,-460.0,0.00019178,2]
[369971205,1751805051413,-3891.7,0.00019178,2]
[369971207,1751805051422,-460.0,0.00019178,2]
[369971209,1751805051431,-460.0,0.00019178,2]
[369971211,1751805051440,-460.0,0.00019178,2]
[369971213,1751805051449,-460.0,0.00019178,2]
[369971215,1751805051459,-842.91,0.00019178,2]
[369971217,1751805051468,-5339.8,0.00019178,2]
[369971219,1751805051478,-332.76238387,0.00019178,2]
[369971221,1751805051487,-460.0,0.00019178,2]
[369971223,1751805051496,-157.39233364,0.00019178,2]
[369971225,1751805051506,-460.0,0.00019178,2]
[369971227,1751805051516,-460.0,0.00019178,2]
[369971229,1751805051525,-460.0,0.00019178,2]
[369971231,1751805051535,-460.0,0.00019178,2]
[369971233,1751805051544,-680.17,0.00019178,2]
[369971235,1751805051553,-460.0,0.00019178,2]
[369971237,1751805051562,-460.0,0.00019178,2]
[369971239,1751805051571,-1496.3,0.00019178,2]
[369971241,1751805051581,-460.0,0.00019178,2]
[369971243,1751805051590,-1458.42,0.00019178,2]
[369971245,1751805051600,-1355.31,0.00019178,2]
[369971247,1751805051609,-460.0,0.00019178,2]
[369971249,1751805051618,-460.0,0.00019178,2]
[369971251,1751805051627,-460.0,0.00019178,2]
[369971252,1751805051636,-460.0,0.00019178,2]
[369971254,1751805051646,-460.0,0.00019178,2]
[369971256,1751805051656,-460.0,0.00019178,2]
[369971258,1751805051665,-460.0,0.00019178,2]
[369971260,1751805051675,-460.0,0.00019178,2]
[369971262,1751805051684,-490.0,0.00019178,2]
[369971264,1751805051694,-686.91,0.00019178,2]
[369971266,1751805051703,-500.0,0.00019178,2]
[369971268,1751805051713,-500.0,0.00019178,2]
[369971270,1751805051723,-500.0,0.00019178,2]
[369971272,1751805051733,-460.0,0.00019178,2]
[369971274,1751805051743,-460.0,0.00019178,2]
[369971276,1751805051752,-718.88,0.00019178,2]
[369971278,1751805051762,-460.0,0.00019178,2]
[369971280,1751805051772,-859.11,0.00019178,2]
[369971282,1751805051782,-514.75,0.00019178,2]
[369971284,1751805051791,-7357.94,0.00019178,2]
[369971286,1751805051800,-1254.6,0.00019178,2]
[369971288,1751805051810,-586.04,0.00019178,2]
[369971290,1751805051819,-610.26,0.00019178,2]
[369971292,1751805051828,-1438.83,0.00019178,2]
[369971294,1751805051838,-606.76,0.00019178,2]
[369971296,1751805051848,-545.02,0.00019178,2]
[369971298,1751805051858,-460.0,0.00019178,2]
[369971300,1751805051868,-1425.23,0.00019178,2]
[369971302,1751805051877,-460.0,0.00019178,2]
[369971304,1751805051887,-803.03,0.00019178,2]
[369971306,1751805051896,-621.36,0.00019178,2]
[369971308,1751805051905,-1500.0,0.00019178,2]
[369971310,1751805051915,-511.86,0.00019178,2]
[369971312,1751805051924,-460.0,0.00019178,2]
[369971314,1751805051934,-207.47019879,0.00019178,2]
[369971316,1751805051943,-471.08,0.00019178,2]
[369971317,1751805051953,-460.0,0.00019178,2]
[369971319,1751805051962,-460.0,0.00019178,2]
[369971322,1751805051973,-460.0,0.00019178,2]
[369971323,1751805051983,-460.0,0.00019178,2]
[369971326,1751805051992,-1000.3,0.00019178,2]
[369971328,1751805052003,-548.54,0.00019178,2]
[369971329,1751805052012,-594.59,0.00019178,2]
[369971331,1751805052022,-808.25,0.00019178,2]
[369971333,1751805052033,-460.0,0.00019178,2]
[369971335,1751805052043,-672.69,0.00019178,2]
[369971338,1751805052054,-460.0,0.00019178,2]
[369971340,1751805052063,-460.0,0.00019178,2]
[369971341,1751805052074,-460.0,0.00019178,2]
[369971343,1751805052084,-336.34559059,0.00019178,2]
[369971345,1751805052094,-1356.37,0.00019178,2]
[369971347,1751805052103,-460.0,0.00019178,2]
[369971350,1751805052113,-615.3,0.00019178,2]
[369971351,1751805052122,-1610.56,0.00019178,2]
[369971354,1751805052135,-2379.27,0.00019178,2]
[369971355,1751805052145,-546.04,0.00019178,2]
[369971357,1751805052154,-920.59,0.00019178,2]
[369971359,1751805052164,-460.0,0.00019178,2]
[369971362,1751805052175,-460.0,0.00019178,2]
[369971364,1751805052185,-861.33,0.00019178,2]
[369971366,1751805052195,-460.0,0.00019178,2]
[369971367,1751805052205,-460.0,0.00019178,2]
[369971369,1751805052214,-460.0,0.00019178,2]
[369971371,1751805052224,-641.75,0.00019178,2]
[369971373,1751805052233,-460.0,0.00019178,2]
[369971375,1751805052243,-887.74,0.00019178,2]
[369971377,1751805052253,-1099.3,0.00019178,2]
[369971379,1751805052262,-460.0,0.00019178,2]
[369971381,1751805052271,-460.0,0.00019178,2]
[369971383,1751805052281,-5391.66034656,0.00019178,2]
[369971453,1751805053313,-1554.1005169,0.00019178,2]
[369971458,1751805053654,6789.0,0.00030136,120]
[369971534,1751805149151,182.77,0.00013699,2]
[369971537,1751805196367,199.674861,0.00026464,120]
[369971579,1751805449898,500.0,0.00030136,120]
[369971580,1751805459273,500.0,0.00030136,120]
[369971584,1751805492422,2000.0,0.00030136,120]
[369971594,1751805815123,762.54229221,0.00026726,120]
[369971596,1751805837354,821.0,0.0003,120]
[369971597,1751805868445,3000.0,0.0003,120]
[369971598,1751805879486,1000.0,0.0003,120]
[369971657,1751806170401,173.63,0.00013699,2]
[369971695,1751806231661,-546.0,0.00016418,2]
[369971696,1751806231670,-500.0,0.00017064,2]
[369971697,1751806231680,-500.0,0.00017064,2]
[369971698,1751806231689,-120.8225,0.00017152,2]
[369971699,1751806231718,-750.81041459,0.00017152,2]
[369971700,1751806231779,-320.04246613,0.00017152,2]
[369971703,1751806237922,-480.79530369,0.00017152,2]
[369971892,1751806240174,-827.52931559,0.00017152,2]
[369971894,1751806240183,-1245.33869646,0.00017241,2]
[369971896,1751806240195,-1135.53215878,0.00017241,2]
[369971898,1751806240206,-119.12914476,0.00017241,2]
[369971900,1751806240217,-422.12085524,0.00017738,2]
[369972161,1751806242812,-552.10264082,0.00017738,2]
[369972168,1751806242870,-595.656,0.00017738,2]
[369972186,1751806243032,-930.12050394,0.00017738,2]
[369972188,1751806243041,-6294.07164197,0.00017926,2]
[369972451,1751806245686,-132.18835803,0.00017926,2]
[369972453,1751806245696,-300.0,0.00017988,2]
[369972455,1751806245705,-479.93358948,0.00017989,2]
[369975172,1751806430042,1000.0,0.00030136,120]
[369975173,1751806441830,1000.0,0.00030136,120]
[369975174,1751806454546,1000.0,0.00030136,120]
[369975176,1751806482253,611.0,0.00030136,120]
[369975181,1751806597185,167.7102144,0.00028592,120]
[369975185,1751806660947,508.30989182,0.0003013,120]
[369975216,1751806852267,305.72,0.00026633,120]
[369975403,1751807348287,6002.9578083,0.00030136,120]
[369975441,1751807431950,-300.0,0.00017063,2]
[369975442,1751807431960,-2500.0,0.00017063,2]
[369975443,1751807431969,-2500.0,0.00017064,2]
[369975444,1751807431979,-2500.0,0.00017064,2]
[369975445,1751807431988,-500.0,0.00017064,2]
[369975446,1751807431997,-500.0,0.00017064,2]
[369975447,1751807432007,-301.55,0.00017064,2]
[369975448,1751807432016,-302.08,0.00017064,2]
[369975449,1751807432027,-304.37,0.00017064,2]
[369975450,1751807432036,-305.26,0.00017064,2]
[369975451,1751807432045,-305.72,0.00017064,2]
[369975452,1751807432054,-301.31,0.00017064,2]
[369975453,1751807432063,-302.69,0.00017064,2]
[369975454,1751807432072,-301.45,0.00017064,2]
[369975455,1751807432082,-301.5,0.00017064,2]
[369975456,1751807432093,-300.77,0.00017064,2]
[369975457,1751807432103,-301.86,0.00017064,2]
[369975458,1751807432113,-302.44,0.00017064,2]
[369975459,1751807432123,-305.38,0.00017064,2]
[369975460,1751807432132,-300.54,0.00017064,2]
[369975461,1751807432142,-304.96,0.00017064,2]
[369975462,1751807432152,-5830.17,0.0001775,2]
[369975463,1751807432162,-305.72,0.00017756,2]
[369975464,1751807432172,-666.0,0.00017756,2]
[369975465,1751807432182,-1000.0,0.00017805,2]
[369975466,1751807432191,-181.57574997,0.00017889,2]
[369975467,1751807432206,-167.87282805,0.000179,2]
[369975468,1751807432216,-167.87282805,0.00017907,2]
[369975469,1751807432225,-36870.95219513,0.00017988,2]
[369975470,1751807432237,-217736.53001657,0.00017988,2]
[369975472,1751807432246,-5554.09749712,0.00017989,2]
[369975474,1751807432256,-31926.23794066,0.00017989,2]
[369975475,1751807432267,-161.29,0.00017992,2]
[369975476,1751807432278,-167.87282805,0.00018008,2]
[369975477,1751807432288,-207.4,0.00018026,2]
[369975479,1751807432298,-151.0,0.00018026,2]
[369975481,1751807432307,-161.29,0.00018037,2]
[369975482,1751807432316,-161.29,0.00018082,2]
[369975483,1751807432325,-154.0,0.000181,2]
[369975484,1751807432337,-167.87282805,0.00018109,2]
[369975485,1751807432348,-181.57574997,0.00018112,2]
[369975487,1751807432358,-161.29,0.00018127,2]
[369975489,1751807432367,-161.29,0.00018172,2]
[369975491,1751807432376,-167.87282805,0.00018211,2]
[369975493,1751807432385,-167.87282805,0.00018312,2]
[369975495,1751807432395,-187.24,0.00018329,2]
[369975497,1751807432405,-181.57574997,0.00018336,2]
[369975499,1751807432415,-167.87282805,0.00018413,2]
[369975501,1751807432424,-167.87282805,0.00018514,2]
[369975503,1751807432435,-181.57574997,0.00018559,2]
[369975505,1751807432444,-268.1150594,0.00018574,2]
[369975508,1751807432454,-151.0,0.0001859,2]
[369975510,1751807432463,-167.87282805,0.00018615,2]
[369975512,1751807432473,-1040.39671338,0.00018628,2]
[369975513,1751807432482,-5830.17,0.00018638,2]
[369975514,1751807432491,-167.87282805,0.00018716,2]
[369975515,1751807432501,-2500.0,0.00018769,2]
[369975516,1751807432510,-2500.0,0.00018769,2]
[369975517,1751807432519,-181.57574997,0.00018783,2]
[369975518,1751807432530,-151.021695,0.00018794,2]
[369975519,1751807432540,-206.700005,0.000188,2]
[369975520,1751807432550,-167.87282805,0.00018817,2]
[369975521,1751807432559,-155.42,0.00018878,2]
[369975523,1751807432569,-214.0,0.0001888,2]
[369975525,1751807432579,-1180.62762998,0.000189,2]
[369975526,1751807432588,-167.87282805,0.00018918,2]
[369975527,1751807432597,-181.57574997,0.00019006,2]
[369975528,1751807432607,-187.24,0.00019016,2]
[369975529,1751807432617,-167.87282805,0.00019019,2]
[369975530,1751807432626,-206.70000495,0.0001902,2]
[369975531,1751807432636,-300.0,0.00019028,2]
[369975532,1751807432646,-160.0,0.00019045,2]
[369975533,1751807432655,-168.0,0.00019057,2]
[369975534,1751807432664,-150.0,0.0001907,2]
[369975535,1751807432674,-2406.75536168,0.00019073,2]
[369975536,1751807432685,-301.01947032,0.00019078,2]
[369975537,1751807432694,-5000.0,0.00019078,2]
[369975538,1751807432704,-338.0,0.00019096,2]
[369975539,1751807432713,-214.0,0.000191,2]
[369975540,1751807432723,-155.37,0.000191,2]
[369975541,1751807432732,-805.0,0.00019117,2]
[369975542,1751807432742,-259.318,0.00019117,2]
[369975543,1751807432751,-167.87282805,0.0001912,2]
[369975544,1751807432761,-310.74,0.00019152,2]
[369975545,1751807432770,-2406.75536164,0.00019165,2]
[369975546,1751807432780,-10831.6627735,0.00019168,2]
[369975547,1751807432791,-196.23947154,0.00019168,2]
[369975548,1751807432800,-74260.44031703,0.0001917,2]
[369975549,1751807432813,-161942.7201706,0.0001917,2]
[369975550,1751807432823,-500.0,0.00019173,2]
[369975551,1751807432833,-10514.4191277,0.00019174,2]
[369975552,1751807432842,-15956.8695435,0.00019174,2]
[369975553,1751807432852,-500.0,0.00019177,2]
[369975554,1751807432861,-475.30037391,0.00019177,2]
[369975555,1751807432871,-625.60456415,0.00019177,2]
[369975556,1751807432881,-178.212999,0.00019178,2]
[369975557,1751807432890,-163.072734,0.00019178,2]
[369975558,1751807432898,-1119.419267,0.00019178,2]
[369975559,1751807432908,-160.728233,0.00019178,2]
[369975560,1751807432917,-170.64026,0.00019178,2]
[369975561,1751807432926,-460.0,0.00019178,2]
[369975562,1751807432936,-460.0,0.00019178,2]
[369975563,1751807432946,-173.953977,0.00019178,2]
[369975564,1751807432955,-492.87641161,0.00019178,2]
[369975565,1751807432964,-460.0,0.00019178,2]
[369975566,1751807432974,-315.40362601,0.00019178,2]
[369975567,1751807432983,-460.0,0.00019178,2]
[369975568,1751807432992,-460.0,0.00019178,2]
[369975569,1751807433002,-460.0,0.00019178,2]
[369975570,1751807433011,-467.96195669,0.00019178,2]
[369975571,1751807433020,-460.0,0.00019178,2]
[369975572,1751807433030,-460.0,0.00019178,2]
[369975573,1751807433039,-460.0,0.00019178,2]
[369975574,1751807433048,-460.0,0.00019178,2]
[369975575,1751807433058,-460.0,0.00019178,2]
[369975576,1751807433067,-460.0,0.00019178,2]
[369975577,1751807433077,-460.0,0.00019178,2]
[369975578,1751807433086,-661.48,0.00019178,2]
[369975579,1751807433096,-460.0,0.00019178,2]
[369975580,1751807433106,-460.0,0.00019178,2]
[369975581,1751807433116,-460.0,0.00019178,2]
[369975582,1751807433126,-460.0,0.00019178,2]
[369975583,1751807433136,-559.60493289,0.00019178,2]
[369975584,1751807433145,-460.0,0.00019178,2]
[369975585,1751807433155,-460.0,0.00019178,2]
[369975586,1751807433164,-460.0,0.00019178,2]
[369975587,1751807433174,-460.0,0.00019178,2]
[369975588,1751807433183,-460.0,0.00019178,2]
[369975589,1751807433195,-460.0,0.00019178,2]
[369975590,1751807433204,-460.0,0.00019178,2]
[369975591,1751807433213,-460.0,0.00019178,2]
[369975592,1751807433222,-460.0,0.00019178,2]
[369975593,1751807433231,-460.0,0.00019178,2]
[369975594,1751807433240,-460.0,0.00019178,2]
[369975595,1751807433250,-460.0,0.00019178,2]
[369975596,1751807433259,-569.76923235,0.00019178,2]
[369975597,1751807433271,-460.0,0.00019178,2]
[369975598,1751807433280,-460.0,0.00019178,2]
[369975599,1751807433290,-460.0,0.00019178,2]
[369975600,1751807433299,-460.0,0.00019178,2]
[369975601,1751807433309,-460.0,0.00019178,2]
[369975602,1751807433318,-460.0,0.00019178,2]
[369975603,1751807433327,-460.0,0.00019178,2]
[369975604,1751807433337,-460.0,0.00019178,2]
[369975605,1751807433346,-460.0,0.00019178,2]
[369975606,1751807433356,-460.0,0.00019178,2]
[369975607,1751807433366,-460.0,0.00019178,2]
[369975608,1751807433375,-460.0,0.00019178,2]
[369975609,1751807433385,-460.0,0.00019178,2]
[369975610,1751807433394,-460.0,0.00019178,2]
[369975611,1751807433404,-460.0,0.00019178,2]
[369975612,1751807433414,-460.0,0.00019178,2]
[369975613,1751807433423,-460.0,0.00019178,2]
[369975614,1751807433433,-460.0,0.00019178,2]
[369975615,1751807433443,-460.0,0.00019178,2]
[369975616,1751807433452,-460.0,0.00019178,2]
[369975617,1751807433462,-460.0,0.00019178,2]
[369975618,1751807433472,-460.0,0.00019178,2]
[369975619,1751807433481,-460.0,0.00019178,2]
[369975620,1751807433490,-460.0,0.00019178,2]
[369975621,1751807433500,-460.0,0.00019178,2]
[369975622,1751807433509,-500.36,0.00019178,2]
[369975623,1751807433519,-460.0,0.00019178,2]
[369975624,1751807433532,-460.0,0.00019178,2]
[369975625,1751807433547,-460.0,0.00019178,2]
[369975626,1751807433562,-460.0,0.00019178,2]
[369975627,1751807433574,-561.19,0.00019178,2]
[369975628,1751807433585,-526.80899289,0.00019178,2]
[369975629,1751807433598,-460.0,0.00019178,2]
[369975630,1751807433611,-460.0,0.00019178,2]
[369975631,1751807433624,-460.0,0.00019178,2]
[369975632,1751807433638,-460.0,0.00019178,2]
[369975633,1751807433652,-460.0,0.00019178,2]
[369975634,1751807433665,-460.0,0.00019178,2]
[369975635,1751807433677,-460.0,0.00019178,2]
[369975636,1751807433689,-460.0,0.00019178,2]
[369975637,1751807433700,-460.0,0.00019178,2]
[369975638,1751807433714,-460.0,0.00019178,2]
[369975639,1751807433726,-532.53990218,0.00019178,2]
[369975640,1751807433739,-460.0,0.00019178,2]
[369975641,1751807433752,-460.0,0.00019178,2]
[369975642,1751807433765,-460.0,0.00019178,2]
[369975643,1751807433778,-460.0,0.00019178,2]
[369975644,1751807433791,-460.0,0.00019178,2]
[369975645,1751807433806,-460.0,0.00019178,2]
[369975646,1751807433818,-460.0,0.00019178,2]
[369975647,1751807433831,-460.0,0.00019178,2]
[369975648,1751807433844,-356.97281058,0.00019178,2]
[369975649,1751807433856,-460.0,0.00019178,2]
[369975650,1751807433868,-460.0,0.00019178,2]
[369975651,1751807433882,-460.0,0.00019178,2]
[369975652,1751807433896,-460.0,0.00019178,2]
[369975653,1751807433908,-460.0,0.00019178,2]
[369975654,1751807433920,-460.0,0.00019178,2]
[369975655,1751807433931,-460.0,0.00019178,2]
[369975656,1751807433942,-460.0,0.00019178,2]
[369975657,1751807433954,-460.0,0.00019178,2]
[369975658,1751807433967,-460.0,0.00019178,2]
[369975659,1751807433981,-460.0,0.00019178,2]
[369975660,1751807433992,-460.0,0.00019178,2]
[369975661,1751807434002,-460.0,0.00019178,2]
[369975662,1751807434013,-460.0,0.00019178,2]
[369975663,1751807434024,-460.0,0.00019178,2]
[369975664,1751807434038,-460.0,0.00019178,2]
[369975665,1751807434050,-460.0,0.00019178,2]
[369975666,1751807434060,-460.0,0.00019178,2]
[369975667,1751807434071,-460.0,0.00019178,2]
[369975668,1751807434082,-460.0,0.00019178,2]
[369975669,1751807434094,-460.0,0.00019178,2]
[369975670,1751807434105,-737.38,0.00019178,2]
[369975671,1751807434122,-460.0,0.00019178,2]
[369975672,1751807434133,-460.0,0.00019178,2]
[369975673,1751807434145,-460.0,0.00019178,2]
[369975674,1751807434156,-460.0,0.00019178,2]
[369975675,1751807434168,-460.0,0.00019178,2]
[369975676,1751807434179,-460.0,0.00019178,2]
[369975677,1751807434191,-460.0,0.00019178,2]
[369975678,1751807434203,-460.0,0.00019178,2]
[369975679,1751807434215,-460.0,0.00019178,2]
[369975680,1751807434227,-460.0,0.00019178,2]
[369975681,1751807434239,-460.0,0.00019178,2]
[369975682,1751807434252,-460.0,0.00019178,2]
[369975683,1751807434265,-460.0,0.00019178,2]
[369975684,1751807434281,-460.0,0.00019178,2]
[369975685,1751807434293,-460.0,0.00019178,2]
[369975686,1751807434305,-460.0,0.00019178,2]
[369975687,1751807434317,-598.13,0.00019178,2]
[369975688,1751807434328,-630.93,0.00019178,2]
[369975689,1751807434340,-337.09834089,0.00019178,2]
[369975690,1751807434352,-460.0,0.00019178,2]
[369975691,1751807434365,-697.09,0.00019178,2]
[369975692,1751807434376,-460.0,0.00019178,2]
[369975693,1751807434388,-587.77666883,0.00019178,2]
[369975694,1751807434399,-460.0,0.00019178,2]
[369975695,1751807434411,-460.0,0.00019178,2]
[369975696,1751807434422,-460.0,0.00019178,2]
[369975697,1751807434434,-460.0,0.00019178,2]
[369975698,1751807434446,-460.0,0.00019178,2]
[369975699,1751807434458,-460.0,0.00019178,2]
[369975700,1751807434470,-630.35,0.00019178,2]
[369975701,1751807434481,-460.0,0.00019178,2]
[369975702,1751807434493,-460.0,0.00019178,2]
[369975703,1751807434505,-460.0,0.00019178,2]
[369975704,1751807434517,-509.74,0.00019178,2]
[369975705,1751807434529,-460.0,0.00019178,2]
[369975706,1751807434541,-460.0,0.00019178,2]
[369975707,1751807434554,-460.0,0.00019178,2]
[369975708,1751807434565,-460.0,0.00019178,2]
[369975709,1751807434576,-460.0,0.00019178,2]
[369975710,1751807434588,-460.0,0.00019178,2]
[369975711,1751807434599,-460.0,0.00019178,2]
[369975712,1751807434611,-460.0,0.00019178,2]
[369975713,1751807434622,-469.68066014,0.00019178,2]
[369975714,1751807434634,-460.0,0.00019178,2]
[369975715,1751807434645,-460.0,0.00019178,2]
[369975716,1751807434656,-460.0,0.00019178,2]
[369975717,1751807434668,-460.0,0.00019178,2]
[369975718,1751807434679,-460.0,0.00019178,2]
[369975719,1751807434691,-460.0,0.00019178,2]
[369975720,1751807434703,-460.0,0.00019178,2]
[369975721,1751807434714,-460.0,0.00019178,2]
[369975722,1751807434725,-460.0,0.00019178,2]
[369975723,1751807434737,-460.0,0.00019178,2]
[369975724,1751807434748,-460.0,0.00019178,2]
[369975725,1751807434759,-460.0,0.00019178,2]
[369975726,1751807434770,-460.0,0.00019178,2]
[369975727,1751807434781,-460.0,0.00019178,2]
[369975728,1751807434792,-460.0,0.00019178,2]
[369975729,1751807434804,-387.17665764,0.00019178,2]
[369975730,1751807434815,-460.0,0.00019178,2]
[369975731,1751807434827,-486.77,0.00019178,2]
[369975732,1751807434838,-665.47,0.00019178,2]
[369975733,1751807434850,-585.73313025,0.00019178,2]
[369975734,1751807434861,-460.0,0.00019178,2]
[369975735,1751807434872,-505.23,0.00019178,2]
[369975736,1751807434884,-460.0,0.00019178,2]
[369975737,1751807434896,-659.16,0.00019178,2]
[369975738,1751807434907,-460.0,0.00019178,2]
[369975739,1751807434919,-721.78,0.00019178,2]
[369975740,1751807434931,-650.32,0.00019178,2]
[369975741,1751807434942,-460.0,0.00019178,2]
[369975742,1751807434954,-460.0,0.00019178,2]
[369975743,1751807434965,-460.0,0.00019178,2]
[369975744,1751807434977,-460.0,0.00019178,2]
[369975745,1751807434988,-460.0,0.00019178,2]
[369975746,1751807435000,-460.0,0.00019178,2]
[369975747,1751807435011,-460.0,0.00019178,2]
[369975748,1751807435023,-245.98467238,0.00019178,2]
[369975749,1751807435035,-460.0,0.00019178,2]
[369975750,1751807435047,-561.98439423,0.00019178,2]